bitfinex-derivatives/quotes_ETHF0:USTF0_20220108
["timestamp","ask_amount","ask_price","bid_price","bid_amount"]
[1641656543711,1.03231128,3159.4,3158.9,2.00479]
[1641656544011,0.264788,3159.3,3158.9,2.95399]
[1641656549032,1.86013174,3159.3,3158.9,2.95399]
[1641656551132,1.59534374,3159.0,3158.9,2.95399]
[1641656551330,1.86013174,3159.0,3158.9,2.95399]
[1641656551730,0.264788,3159.0,3158.9,2.95399]
[1641656552030,0.264788,3159.0,3158.9,2.00479]
[1641656552231,0.264788,3159.0,3158.5,2.00479]
[1641656552433,0.8894811,3158.9,3158.2,0.07913]
[1641656552632,0.264788,3158.8,3157.6,2.47035827]
[1641656553732,2.00479,3158.5,3157.8,2.00479]
[1641656553933,0.264788,3158.4,3157.8,2.00479]
[1641656554131,0.264788,3158.4,3157.9,0.640787]
[1641656554831,0.264788,3158.4,3157.8,3.58777231]
[1641656555531,0.933188,3158.4,3157.8,2.00479]
[1641656555732,2.00479,3158.0,3157.5,2.00479]
[1641656555931,0.264788,3157.9,3157.5,2.00479]
[1641656560936,26.66404799,3157.6,3156.4,1.31607118]
[1641656561138,1.5,3156.7,3156.4,1.31607118]
[1641656561336,0.264788,3156.6,3156.5,1.31607118]
[1641656561837,5.75016838,3156.6,3156.5,1.31607118]
[1641656562337,5.75016838,3156.6,3156.5,0.17467893]
[1641656562537,4.00958,3156.6,3156.3,0.640787]
[1641656562740,2.00479,3156.6,3156.4,1.58369428]
[1641656562938,2.00479,3156.6,3156.5,0.0792]
[1641656563837,2.00479,3156.6,3156.5,1.66285666]
[1641656564237,2.00479,3156.6,3156.4,0.8436]
[1641656564438,2.00479,3156.6,3156.3,0.640787]
[1641656564639,2.00479,3156.6,3156.4,0.0792]
[1641656564839,2.00479,3156.6,3156.3,0.640787]
[1641656566542,2.00479,3157.2,3156.3,0.640787]
[1641656567143,2.00479,3157.2,3156.3,2.22452141]
[1641656567743,2.00479,3157.2,3156.4,0.07918]
[1641656568846,0.79888841,3156.9,3156.4,0.07918]
[1641656569047,0.79888841,3156.9,3156.3,0.640787]
[1641656570047,1.06367641,3156.9,3156.2,0.07918]
[1641656570247,1.06367641,3156.9,3156.1,4.08878]
[1641656570449,1.06367641,3156.9,3156.1,2.08399]
[1641656570647,1.06367641,3156.9,3156.2,0.640787]
[1641656570847,0.79888841,3156.8,3156.2,0.640787]
[1641656571847,2.00479,3156.6,3156.2,0.640787]
[1641656573350,2.00479,3156.6,3156.3,0.0792]
[1641656573550,0.79888841,3157.0,3156.3,0.0792]
[1641656574653,0.79888841,3156.9,3156.3,0.0792]
[1641656574851,0.79888841,3156.9,3156.2,1.574967]
[1641656575456,0.79888841,3156.9,3156.8,1.5]
[1641656575654,1.31693536,3157.1,3156.8,1.5]
[1641656575852,1.31693536,3157.1,3157.0,2.00479]
[1641656576054,1.31693536,3157.1,3157.0,4.27923805]
[1641656576252,1.06518454,3157.1,3157.0,2.69596]
[1641656576653,1.06518454,3157.5,3157.0,2.69596]
[1641656576853,1.32997254,3157.5,3157.0,2.61679]
[1641656579158,0.21133152,3157.4,3157.0,2.61679]
[1641656579657,0.47611952,3157.4,3157.0,2.61679]
[1641656579859,2.00479,3157.2,3156.6,0.07917]
[1641656580059,2.00479,3157.2,3156.1,2.00479]
[1641656580060,2.00479,3157.2,3156.2,0.07918]
[1641656580258,2.00479,3157.2,3156.2,1.57918]
[1641656580259,0.264788,3157.1,3156.2,1.57918]
[1641656580461,0.264788,3157.1,3156.2,0.07918]
[1641656580659,2.00479,3157.2,3156.2,0.07918]
[1641656581861,2.00479,3157.2,3156.6,1.58359898]
[1641656582064,2.269578,3157.2,3156.2,0.07918]
[1641656582864,2.269578,3157.2,3156.6,1.58359898]
[1641656583064,2.269578,3157.2,3156.7,0.640787]
[1641656583463,2.00479,3157.2,3156.7,0.640787]
[1641656584666,1.06518454,3157.4,3157.0,1.5]
[1641656584865,1.06518454,3157.4,3156.7,0.640787]
[1641656584866,1.06518454,3157.4,3157.3,1.5]
[1641656585067,1.06518454,3157.4,3157.3,2.4075]
[1641656585268,3.60664106,3157.9,3157.4,0.640787]
[1641656585467,1.60185106,3157.9,3157.5,0.07917]
[1641656585867,1.60185106,3157.9,3157.6,2.00479]
[1641656586269,0.66890882,3158.1,3157.6,2.00479]
[1641656587168,0.66890882,3158.1,3157.6,3.50479]
[1641656587368,0.1653315,3158.0,3157.6,3.50479]
[1641656587568,0.1653315,3158.0,3157.6,2.84229089]
[1641656588371,0.1653315,3158.2,3157.8,1.5]
[1641656588569,0.1653315,3158.2,3157.9,0.07915]
[1641656589473,0.1653315,3158.1,3157.7,0.07915]
[1641656589673,0.1653315,3158.1,3157.6,1.42144089]
[1641656589874,0.264788,3158.0,3157.6,1.34229089]
[1641656590473,0.1653315,3158.1,3157.6,1.34229089]
[1641656590873,0.1653315,3157.9,3157.6,1.34229089]
[1641656592174,0.1653315,3158.3,3157.6,1.34229089]
[1641656592374,0.4301195,3158.3,3157.6,2.09209089]
[1641656593676,0.1653315,3158.3,3157.6,2.09209089]
[1641656593877,0.1653315,3158.3,3158.2,1.5]
[1641656594076,1.60185106,3158.4,3158.2,3.7235388]
[1641656595377,1.60185106,3158.4,3158.2,2.3026788]
[1641656595585,1.60185106,3159.0,3158.2,2.3026788]
[1641656595987,1.60185106,3159.0,3158.5,2.00479]
[1641656596987,1.60185106,3158.9,3158.5,2.00479]
[1641656598089,1.60185106,3159.0,3158.5,2.00479]
[1641656599291,0.264788,3159.1,3158.5,2.00479]
[1641656599292,1.86663906,3159.1,3158.5,2.00479]
[1641656600292,1.60185106,3159.0,3158.5,2.00479]
[1641656600693,0.264788,3158.9,3158.5,2.00479]
[1641656601293,0.264788,3158.9,3158.2,1.66193189]
[1641656601493,0.264788,3158.9,3158.2,0.640787]
[1641656601694,0.264788,3158.9,3157.9,0.07914]
[1641656601894,13.844788,3158.9,3157.3,0.07914]
[1641656602094,2.00479,3158.0,3157.3,2.00479]
[1641656602393,0.264788,3157.9,3157.3,2.00479]
[1641656603495,2.00479,3158.0,3157.4,0.640787]
[1641656604292,2.00479,3158.0,3157.6,1.58309508]
[1641656605395,2.00479,3158.0,3157.6,2.19429508]
[1641656605896,2.00479,3158.0,3157.6,3.69429508]
[1641656606596,2.00479,3158.3,3157.9,1.5]
[1641656606800,1.60185106,3158.5,3158.2,1.58269419]
[1641656606995,1.60185106,3158.5,3158.3,0.719927]
[1641656607196,1.60185106,3158.5,3158.4,1.58265662]
[1641656607796,1.60185106,3158.6,3158.4,1.58265662]
[1641656609197,1.60185106,3158.7,3158.4,1.58265662]
[1641656610200,2.00479,3158.5,3158.4,1.58265662]
[1641656610599,2.00479,3158.5,3158.0,2.00479]
[1641656610799,2.00479,3158.5,3158.1,1.58282696]
[1641656610998,2.00479,3158.5,3158.0,2.645577]
[1641656611201,2.00479,3158.5,3158.1,1.58282696]
[1641656611399,2.29688251,3158.5,3158.1,1.58282696]
[1641656612200,1.89695251,3158.4,3158.1,1.58282696]
[1641656612404,1.89695251,3158.4,3158.1,1.66196696]
[1641656613402,0.29209251,3158.4,3158.1,1.66196696]
[1641656614706,0.29209251,3158.4,3158.2,1.5]
[1641656615308,0.29209251,3158.4,3158.1,1.02906911]
[1641656615706,1.89695251,3158.4,3158.1,1.02906911]
[1641656616312,1.89695251,3158.4,3158.3,1.58262656]
[1641656616510,1.89695251,3158.4,3158.1,1.02906911]
[1641656617210,1.89695251,3158.4,3158.3,1.58267665]
[1641656618511,1.89695251,3158.4,3158.2,0.07915]
[1641656618912,1.89695251,3158.4,3158.2,1.57915]
[1641656619512,1.89695251,3158.4,3158.2,3.16182665]
[1641656619712,0.29209251,3158.4,3158.2,3.16182665]
[1641656620111,0.29209251,3158.4,3158.2,1.66182665]
[1641656621113,0.29209251,3158.4,3158.2,0.07915]
[1641656621516,0.55688051,3158.4,3158.2,0.07915]
[1641656621913,0.55688051,3158.4,3158.0,2.00479]
[1641656622715,0.29209251,3158.4,3158.0,2.645577]
[1641656623517,1.60486,3158.2,3158.0,2.645577]
[1641656623716,1.60486,3158.2,3158.1,0.07915]
[1641656623917,1.60486,3158.2,3158.1,0.77335]
[1641656624119,1.60486,3158.2,3158.1,3.4359514]
[1641656624520,1.60486,3158.2,3158.1,17.0159514]
[1641656624717,1.90170268,3158.4,3158.3,0.74166067]
[1641656624918,1.99871265,3158.6,3158.3,16.66231604]
[1641656625118,1.99871265,3158.6,3158.5,15.08]
[1641656625318,1.99871265,3158.6,3158.5,15.15914]
[1641656625518,3.12871411,3159.1,3158.5,15.15914]
[1641656625717,3.10708553,3159.3,3159.0,1.5]
[1641656625920,3.10708553,3159.3,3159.2,1.5]
[1641656626120,3.10708553,3159.3,3159.1,2.645577]
[1641656626320,3.10708553,3159.3,3159.1,2.00479]
[1641656626521,2.68198331,3159.3,3159.1,2.00479]
[1641656627222,0.264788,3159.2,3159.1,2.00479]
[1641656629526,0.264788,3159.2,3158.9,1.72327971]
[1641656630326,0.264788,3159.2,3158.9,1.58230101]
[1641656630526,0.264788,3159.2,3158.5,4.23862071]
[1641656631429,0.938588,3159.2,3158.5,4.23862071]
[1641656631630,0.499809,3159.1,3158.5,4.23862071]
[1641656631831,0.264788,3159.0,3158.5,4.23862071]
[1641656632429,0.264788,3159.0,3158.5,2.00479]
[1641656632829,2.68340841,3158.9,3158.5,2.00479]
[1641656633031,0.264788,3158.8,3158.5,2.00479]
[1641656633230,2.68340841,3158.9,3158.5,2.00479]
[1641656633429,2.68340841,3158.9,3158.5,2.62679]
[1641656634231,2.01244445,3158.8,3158.5,2.62679]
[1641656634433,1.60995556,3158.6,3158.5,0.622]
[1641656634631,1.60995556,3158.6,3158.5,0.47009716]
[1641656635030,2.01244445,3158.8,3158.5,0.47009716]
[1641656635232,2.01244445,3158.7,3158.5,0.47009716]
[1641656636629,2.01244445,3158.7,3158.5,1.41990492]
[1641656637531,2.01244445,3158.6,3158.5,1.41990492]
[1641656638733,2.01244445,3158.7,3158.5,1.49904492]
[1641656638933,2.01244445,3158.7,3158.6,0.07914]
[1641656639936,0.264788,3158.8,3158.6,0.07914]
[1641656639937,2.27723245,3158.8,3158.6,0.07914]
[1641656640336,0.264788,3158.8,3158.6,0.07914]
[1641656641637,2.27859913,3158.8,3158.6,0.07914]
[1641656642936,2.27859913,3158.8,3158.5,0.94980776]
[1641656644248,4.01860113,3158.6,3158.5,0.94980776]
[1641656644448,4.28338913,3158.6,3158.5,0.94980776]
[1641656644952,4.556178,3158.6,3157.6,1.58278687]
[1641656645251,1.5,3158.4,3157.6,1.58278687]
[1641656645451,0.764597,3158.3,3157.6,1.58278687]
[1641656645950,1.5,3158.0,3157.4,1.1401705]
[1641656646149,1.5,3158.0,3157.1,32.3708]
[1641656646150,0.264788,3157.9,3157.1,32.3708]
[1641656646351,2.00479,3157.5,3157.0,0.07917]
[1641656646853,0.264788,3157.4,3157.0,0.07917]
[1641656647052,0.264788,3157.4,3156.7,2.00479]
[1641656647053,0.264788,3157.4,3156.8,0.07917]
[1641656647455,0.264788,3157.4,3156.8,13.65917]
[1641656647654,0.499809,3157.3,3156.8,13.65917]
[1641656647854,0.264788,3157.2,3156.8,13.65917]
[1641656648053,0.264788,3157.2,3157.0,1.58327805]
[1641656648453,0.264788,3157.2,3156.6,6.18676575]
[1641656648454,2.00479,3157.1,3156.6,6.18676575]
[1641656648655,0.264788,3157.0,3156.6,4.60329465]
[1641656649054,0.264788,3157.0,3156.6,5.24408165]
[1641656649254,0.264788,3157.0,3156.6,6.82754522]
[1641656649454,2.00479,3157.1,3156.6,6.82754522]
[1641656649654,2.00479,3157.1,3156.7,0.07918]
[1641656649855,0.50549149,3156.9,3156.7,0.07918]
[1641656650456,0.50549149,3156.9,3156.7,1.57918]
[1641656650654,0.50549149,3156.9,3156.8,1.58327805]
[1641656650854,0.50549149,3156.9,3156.8,2.49525805]
[1641656651256,2.11683235,3157.0,3156.8,2.49525805]
[1641656651455,2.11683235,3157.0,3156.9,0.07918]
[1641656651456,0.50549149,3157.0,3156.9,0.07918]
[1641656652659,2.00479,3157.1,3157.0,0.44475767]
[1641656652857,2.00479,3157.1,3157.0,0.07917]
[1641656654060,2.00479,3157.1,3157.0,16.74220744]
[1641656654260,1.61134086,3157.4,3157.0,16.74220744]
[1641656654460,1.61134086,3157.4,3157.2,1.5]
[1641656654661,1.61134086,3157.4,3157.3,0.719957]
[1641656654860,3.61613086,3157.5,3157.3,0.719957]
[1641656655462,1.61134086,3157.5,3157.4,13.58]
[1641656655661,1.61134086,3157.5,3157.4,13.65917]
[1641656655861,1.61134086,3157.5,3157.4,16.74204456]
[1641656656263,4.69957246,3158.0,3157.4,20.74204456]
[1641656656463,0.8360815,3158.2,3158.0,13.58]
[1641656656662,1.68295871,3158.3,3158.1,2.219937]
[1641656657162,1.68295871,3158.3,3158.2,12.37240357]
[1641656657566,0.67394076,3158.3,3158.2,12.37240357]
[1641656657967,0.67394076,3158.7,3158.2,12.37240357]
[1641656658166,0.67394076,3158.7,3158.4,1.33484736]
[1641656658563,0.67394076,3158.7,3158.4,15.20725093]
[1641656658962,0.67394076,3158.7,3158.4,2.83484736]
[1641656659166,0.67394076,3158.7,3158.4,16.41484736]
[1641656659365,2.00479,3159.0,3158.6,1.58233106]
[1641656660467,2.00479,3159.0,3158.7,0.07914]
[1641656660864,2.00479,3159.0,3158.2,2.00479]
[1641656660865,0.264788,3158.9,3158.2,2.00479]
[1641656661066,0.264788,3158.9,3157.8,0.07914]
[1641656661268,1.5,3158.4,3157.3,0.07914]
[1641656661568,1.5,3158.4,3157.3,1.58311513]
[1641656661866,1.5,3158.4,3157.4,0.07915]
[1641656662066,32.3035,3158.8,3157.3,1.58311513]
[1641656662266,1.5,3158.1,3157.1,2.1509549]
[1641656662467,2.00479,3157.6,3157.1,1.34517462]
[1641656662667,0.764597,3157.5,3157.1,1.26602462]
[1641656666372,2.37596327,3157.5,3157.1,1.26602462]
[1641656667271,1.87615427,3157.5,3157.1,2.84921243]
[1641656667479,1.07410361,3157.2,3157.1,2.84921243]
[1641656667876,1.07410361,3157.2,3157.1,2.92838243]
[1641656668078,1.07410361,3157.2,3157.1,16.50838243]
[1641656668277,1.07410361,3157.2,3157.1,2.92838243]
[1641656668776,1.07410361,3157.4,3157.1,2.92838243]
[1641656668977,1.07410361,3157.4,3157.2,0.07917]
[1641656670981,2.00479,3157.6,3157.4,0.16866568]
[1641656671178,2.00479,3157.6,3157.2,0.07917]
[1641656672480,2.00479,3157.6,3157.2,13.65917]
[1641656673481,0.50556364,3157.5,3157.2,13.65917]
[1641656675085,0.80388536,3157.3,3157.2,13.65917]
[1641656676085,0.80388536,3157.3,3157.2,15.24200698]
[1641656676287,0.80388536,3157.6,3157.2,15.24200698]
[1641656676685,0.80388536,3157.6,3157.4,2.00479]
[1641656676887,0.80388536,3157.6,3157.5,0.07917]
[1641656677786,0.50556364,3157.8,3157.5,0.07917]
[1641656678392,0.50556364,3157.8,3157.5,1.57917]
[1641656678790,0.50556364,3157.8,3157.5,0.07917]
[1641656678990,0.80380675,3157.6,3157.5,0.07917]
[1641656680793,0.80380675,3157.6,3157.5,1.57917]
[1641656681993,0.80380675,3157.6,3157.5,0.07917]
[1641656683498,1.07115484,3157.9,3157.5,0.07917]
[1641656683800,1.07115484,3157.7,3157.5,0.07917]
[1641656684798,1.87444523,3157.7,3157.5,15.66396]
[1641656684997,0.80329039,3157.7,3157.5,15.66396]
[1641656685903,0.80329039,3157.6,3157.5,15.66396]
[1641656686905,1.07115484,3157.8,3157.5,15.66396]
[1641656689004,1.07115484,3157.7,3157.5,15.66396]
[1641656691604,1.07115484,3157.7,3157.5,23.26473083]
[1641656693606,1.07115484,3157.7,3157.5,24.76473083]
[1641656694608,1.07115484,3157.7,3157.5,23.26473083]
[1641656694806,0.50556364,3158.1,3157.8,6.52902993]
[1641656695015,0.50556364,3158.1,3157.8,7.16981693]
[1641656695207,1.00537264,3158.1,3157.5,2.08396]
[1641656695609,0.264788,3158.0,3157.6,1.58294221]
[1641656696808,0.50556364,3157.9,3157.7,6.3336205]
[1641656697212,0.50556364,3157.9,3157.7,4.81744216]
[1641656697408,0.50556364,3157.9,3157.6,2.47764221]
[1641656698212,0.264788,3157.9,3157.6,2.47764221]
[1641656698411,0.264788,3157.9,3157.6,1.58294221]
[1641656699213,0.50556364,3157.8,3157.6,1.58294221]
[1641656699612,0.264788,3157.7,3157.6,1.58294221]
[1641656699814,0.264788,3157.7,3157.5,2.00479]
[1641656700414,2.596688,3157.7,3157.2,1.58317027]
[1641656700612,1.096688,3157.7,3156.9,1.58332317]
[1641656700819,1.5,3157.6,3156.9,1.58332317]
[1641656701012,1.5,3157.6,3156.9,3.58811317]
[1641656701013,0.264788,3157.5,3156.9,3.58811317]
[1641656701214,1.5,3157.3,3156.9,3.58811317]
[1641656701413,0.640787,3157.2,3156.7,5.374]
[1641656701612,0.905575,3157.2,3156.7,5.374]
[1641656701812,1.5,3157.0,3156.4,0.80578028]
[1641656702013,1.5,3156.8,3156.4,0.80578028]
[1641656702212,1.5,3156.5,3156.0,1.33991775]
[1641656702414,2.4171,3157.0,3156.0,1.33991775]
[1641656702614,1.5,3156.3,3156.0,0.51741775]
[1641656702812,0.264788,3156.2,3156.0,0.51741775]
[1641656703013,2.00479,3156.1,3155.6,0.54671]
[1641656703212,2.00479,3156.1,3155.6,0.4675]
[1641656703414,2.269578,3156.1,3155.7,0.140979]
[1641656704112,2.00479,3156.1,3155.7,0.140979]
[1641656704513,2.00479,3156.1,3155.8,0.11021]
[1641656705413,0.50556364,3156.0,3155.8,0.11021]
[1641656705614,0.50556364,3156.0,3155.9,1.5]
[1641656705814,0.50556364,3156.0,3155.9,15.74961]
[1641656706116,1.61136627,3156.6,3156.4,0.44487002]
[1641656706313,1.61136627,3156.6,3156.5,0.220179]
[1641656706516,1.0716004,3156.7,3156.5,0.0792]
[1641656706714,0.3866004,3156.7,3156.4,0.07918]
[1641656706914,0.3866004,3156.7,3156.5,2.00479]
[1641656707113,0.3866004,3156.7,3156.6,0.07918]
[1641656707314,0.3866004,3156.7,3156.6,0.95148]
[1641656707713,1.61136627,3157.2,3156.6,0.95148]
[1641656707915,1.61136627,3157.2,3157.1,1.5]
[1641656708115,1.61136627,3157.4,3157.1,1.57917]
[1641656708314,1.61136627,3157.4,3157.3,1.58280692]
[1641656708516,1.61136627,3157.4,3157.3,2.44080692]
[1641656708914,1.61136627,3157.4,3157.3,2.86279]
[1641656709115,0.264788,3157.6,3157.3,2.86279]
[1641656709314,0.264788,3157.6,3157.4,0.07917]
[1641656710315,0.264788,3157.6,3157.3,0.858]
[1641656710517,0.264788,3157.6,3156.9,0.07917]
[1641656710815,1.764788,3157.6,3156.9,0.07917]
[1641656711015,2.00479,3157.1,3156.6,0.07917]
[1641656711215,0.905575,3157.0,3156.6,0.07917]
[1641656711617,0.905575,3157.0,3156.6,1.02953054]
[1641656712818,0.264788,3157.0,3156.6,1.02953054]
[1641656713218,2.00479,3157.1,3156.6,1.02953054]
[1641656713515,2.00479,3157.1,3156.6,1.75473054]
[1641656713918,2.00479,3157.1,3156.7,13.58]
[1641656714118,1.61136627,3157.5,3156.9,1.5]
[1641656714318,1.61136627,3157.5,3157.3,1.58297228]
[1641656714518,1.61136627,3157.5,3157.4,0.220149]
[1641656715322,3.61615627,3157.9,3157.4,0.220149]
[1641656715519,3.88094427,3157.9,3157.4,0.220149]
[1641656716121,1.61136627,3157.9,3157.4,13.800149]
[1641656716320,0.47136627,3157.8,3157.7,1.58277185]
[1641656716531,0.47136627,3157.8,3157.7,13.58]
[1641656716719,0.08336627,3157.8,3157.7,13.58]
[1641656716920,0.08336627,3157.8,3157.7,15.58479]
[1641656717121,0.01236627,3157.8,3157.7,16.915876]
[1641656717322,2.01423918,3158.1,3157.7,16.915876]
[1641656717720,2.01423918,3158.1,3158.0,1.58234608]
[1641656717923,1.0704587,3158.1,3158.0,2.24304608]
[1641656718122,1.0704587,3158.1,3158.0,2.32220608]
[1641656719124,1.0704587,3158.3,3158.0,4.32699608]
[1641656719322,1.0704587,3158.3,3158.1,0.220129]
[1641656719723,1.0704587,3158.3,3158.2,1.20574057]
[1641656720527,1.0704587,3158.3,3158.2,2.78812171]
[1641656720727,1.0704587,3158.3,3158.2,2.91434938]
[1641656721527,1.0704587,3158.3,3158.2,1.33196824]
[1641656722827,1.0704587,3158.3,3158.2,3.65168443]
[1641656723028,2.00479,3159.0,3158.7,1.12978171]
[1641656723230,2.00479,3159.0,3158.7,1.27076071]
[1641656723430,2.00479,3159.0,3158.7,0.140979]
[1641656724030,2.00479,3159.0,3158.8,0.07914]
[1641656724930,2.00479,3159.0,3158.7,0.02462001]
[1641656725130,2.00479,3159.0,3158.8,0.07914]
[1641656726532,1.95479,3159.0,3158.8,0.07914]
[1641656726935,0.99545169,3159.1,3158.7,0.02462001]
[1641656727136,0.50538253,3158.9,3158.8,2.00479]
[1641656727735,0.25083422,3159.1,3158.8,18.66686071]
[1641656727937,1.95764883,3159.4,3158.9,17.06258572]
[1641656728139,1.95764883,3159.4,3158.9,17.92198572]
[1641656728439,2.68451453,3159.6,3159.4,13.58]
[1641656728637,2.71451453,3159.8,3159.5,0.10373]
[1641656729137,2.71451453,3159.8,3159.7,2.00479]
[1641656729338,2.71451453,3159.8,3159.7,2.68739]
[1641656729538,2.71451453,3159.8,3159.7,4.26919544]
[1641656729737,2.71451453,3159.8,3159.7,2.68739]
[1641656729939,0.68080826,3159.8,3159.7,2.68739]
[1641656730139,0.68080826,3160.4,3159.7,2.68739]
[1641656730540,0.48080826,3160.4,3159.7,2.68739]
[1641656730741,0.48080826,3160.4,3160.0,1.58164532]
[1641656731141,0.43080826,3160.4,3160.3,2.00479]
[1641656731338,3.35635188,3160.6,3160.3,2.02941]
[1641656731540,3.35635188,3160.6,3160.3,15.60941]
[1641656731739,0.03,3160.7,3160.3,15.60941]
[1641656731940,0.03,3160.7,3160.6,1.58126017]
[1641656732140,0.03,3160.7,3160.6,2.39316017]
[1641656732439,0.03,3160.7,3160.6,21.03540917]
[1641656733247,0.03,3160.7,3160.6,19.454149]
[1641656733541,0.03,3160.7,3160.6,5.874149]
[1641656734242,0.03,3160.7,3160.6,19.454149]
[1641656734741,0.03,3160.7,3160.6,21.03539417]
[1641656735742,0.03,3160.7,3160.6,7.45539417]
[1641656738246,0.03,3160.7,3160.6,5.874149]
[1641656739248,0.03,3160.7,3160.6,21.03533916]
[1641656739648,1.06906512,3161.3,3160.7,1.81969356]
[1641656739848,1.06906512,3161.3,3160.6,21.03533916]
[1641656740051,1.06906512,3161.3,3160.8,18.641689]
[1641656740250,1.06906512,3161.3,3160.9,1.58119016]
[1641656740550,0.12006512,3161.3,3161.2,1.58103267]
[1641656740749,0.15006512,3161.6,3161.2,15.16103267]
[1641656740952,0.14806512,3161.6,3161.2,20.22232167]
[1641656741149,0.14806512,3161.6,3161.5,4.00958]
[1641656741356,0.14806512,3161.6,3161.5,4.76708]
[1641656741552,0.14806512,3161.6,3161.5,9.827888]
[1641656741761,0.028,3161.6,3161.5,9.827888]
[1641656742350,0.028,3161.6,3161.5,7.67307387]
[1641656742552,0.028,3161.6,3161.5,21.25307387]
[1641656742752,0.028,3161.6,3161.5,7.67307387]
[1641656743353,0.028,3161.6,3161.5,9.25363674]
[1641656743554,0.028,3161.6,3161.5,7.67307387]
[1641656743754,0.028,3161.6,3161.5,9.25392908]
[1641656745157,0.933575,3161.6,3161.5,9.25392908]
[1641656745357,2.433575,3161.6,3161.5,2.61226587]
[1641656745558,2.433575,3161.6,3161.1,1.58109766]
[1641656745758,1.5,3161.4,3160.9,0.07907]
[1641656745966,0.264788,3161.3,3160.7,0.07907]
[1641656746162,0.264788,3161.3,3160.7,0.10369]
[1641656746560,0.668787,3161.6,3160.7,0.10369]
[1641656746762,1.5,3161.4,3160.8,5.061689]
[1641656746962,1.5,3161.0,3160.1,1.28159619]
[1641656747160,2.00479,3160.7,3160.4,0.07908]
[1641656747362,0.264788,3160.6,3160.3,1.58146523]
[1641656747964,2.00479,3160.7,3160.3,1.58146523]
[1641656748363,2.00479,3160.7,3160.4,0.0791]
[1641656748563,0.264788,3160.8,3160.4,0.0791]
[1641656748766,0.264788,3160.8,3160.4,1.58142021]
[1641656748966,0.640787,3160.9,3160.6,0.94917445]
[1641656750670,0.264788,3161.0,3160.7,1.58130268]
[1641656750871,0.264788,3161.0,3160.8,0.07908]
[1641656751273,1.764788,3161.0,3160.7,1.58130268]
[1641656751472,0.264788,3161.0,3160.7,1.58130268]
[1641656751772,0.264788,3161.0,3160.6,0.94917445]
[1641656751970,2.00479,3161.1,3160.6,0.94917445]
[1641656752169,2.00479,3161.1,3160.7,0.07908]
[1641656752771,2.00479,3161.1,3161.0,0.9490378]
[1641656753071,3.50479,3161.1,3160.5,0.07907]
[1641656753270,2.00479,3161.1,3160.5,0.07907]
[1641656753471,1.764788,3161.0,3160.4,2.00479]
[1641656753974,0.264788,3161.0,3160.4,2.00479]
[1641656754373,1.764788,3161.0,3160.4,2.00479]
[1641656754773,0.264788,3161.0,3160.4,2.00479]
[1641656754973,0.264788,3161.0,3160.5,0.07908]
[1641656755173,0.264788,3161.0,3160.4,2.00479]
[1641656755573,1.5,3160.5,3159.9,2.00479]
[1641656755774,1.5,3160.3,3159.6,0.07908]
[1641656755973,1.5,3160.1,3159.5,0.0791]
[1641656756173,1.5,3160.1,3158.9,0.0791]
[1641656756374,1.5,3160.1,3159.1,0.94962509]
[1641656756578,1.5,3160.1,3159.5,1.58188551]
[1641656756775,0.264788,3160.0,3159.5,1.58188551]
[1641656757177,4.00958,3159.6,3159.2,0.07911]
[1641656757377,0.264788,3159.5,3159.2,0.07911]
[1641656757779,0.640787,3159.4,3159.2,0.07911]
[1641656757978,0.264788,3159.3,3159.2,0.07911]
[1641656758180,0.264788,3159.3,3159.1,1.02875509]
[1641656758878,0.264788,3159.3,3159.1,0.07913]
[1641656759081,3.50479,3159.2,3158.9,0.07913]
[1641656759278,2.00479,3159.6,3158.8,0.4823]
[1641656759279,1.60972538,3161.6,3159.1,1.58195058]
[1641656759478,1.2353,3160.5,3159.5,0.2647]
[1641656759679,1.2353,3159.6,3158.8,1.139646]
[1641656759879,2.116256,3159.5,3158.6,1.13902612]
[1641656760380,0.880956,3159.5,3159.0,0.2647]
[1641656760979,1.2353,3160.2,3159.4,0.2647]
[1641656761182,2.00479,3159.5,3159.4,0.2647]
[1641656761480,2.00479,3159.5,3159.4,0.608598]
[1641656761782,2.00479,3159.5,3159.4,0.343898]
[1641656762183,2.00479,3159.5,3159.4,0.608598]
[1641656762784,2.00479,3159.5,3159.4,0.343898]
[1641656762987,2.00479,3159.5,3159.4,0.07911]
[1641656763184,2.00479,3159.5,3159.2,0.0791]
[1641656763385,2.00479,3159.5,3159.1,1.29343505]
[1641656763585,2.00479,3159.5,3159.1,1.21432505]
[1641656763586,2.269578,3159.5,3159.1,1.21432505]
[1641656763786,2.269578,3159.5,3159.3,0.2647]
[1641656763985,2.269578,3159.5,3159.1,0.94962505]
[1641656764487,2.269578,3159.5,3159.4,0.2647]
[1641656764685,2.269578,3159.5,3159.2,0.07911]
[1641656764885,2.269578,3159.5,3159.3,0.2647]
[1641656765284,2.269578,3159.5,3159.2,0.423028]
[1641656765486,2.269578,3159.5,3159.2,0.15824]
[1641656765886,2.269578,3159.5,3159.4,0.2647]
[1641656766086,2.00479,3159.5,3159.2,0.15824]
[1641656766287,2.00479,3159.5,3159.4,0.2647]
[1641656766486,2.00479,3159.5,3159.4,0.34381]
[1641656767688,2.00479,3159.5,3159.4,0.07911]
[1641656769090,2.00479,3159.5,3159.3,1.8467586]
[1641656769292,2.00479,3159.5,3159.3,1.5819706]
[1641656769491,2.269578,3159.5,3159.3,1.5819706]
[1641656770591,2.269578,3159.5,3159.2,0.42294]
[1641656770791,2.00479,3159.5,3159.2,0.42294]
[1641656770992,2.00479,3159.5,3159.3,0.264788]
[1641656771192,2.00479,3159.5,3159.4,0.2647]
[1641656772092,0.7989385,3160.6,3159.4,1.21422956]
[1641656772293,0.7989385,3160.6,3160.4,0.2647]
[1641656772492,0.7989385,3160.5,3160.4,1.0975]
[1641656773291,4.8085185,3160.5,3160.4,1.0975]
[1641656773992,0.7989385,3160.9,3160.4,1.362288]
[1641656774193,0.7989385,3160.9,3160.8,0.2647]
[1641656774592,0.7989385,3160.9,3160.7,1.84608318]
[1641656774796,0.7989385,3160.9,3160.8,0.07908]
[1641656775195,3.0685165,3160.9,3160.8,0.07908]
[1641656775393,3.0685165,3160.9,3160.7,0.07908]